fUSD/lending_fUSD_20250511
["ID","MTS","AMOUNT","RATE_DAILY","PERIOD"]
[360690325,1746930643298,-400.0,0.00019884,2]
[360690326,1746930643307,-400.0,0.00019884,2]
[360690327,1746930643317,-445.05549792,0.00019884,2]
[360690328,1746930643327,-400.0,0.00019884,2]
[360690329,1746930643336,-439.91104631,0.00019884,2]
[360690330,1746930643346,-285.45959089,0.00019884,2]
[360690331,1746930643355,-400.0,0.00019884,2]
[360690332,1746930643364,-469.47017069,0.00019884,2]
[360690333,1746930643373,-400.0,0.00019884,2]
[360690334,1746930643383,-400.0,0.00019884,2]
[360690335,1746930643393,-400.0,0.00019884,2]
[360690336,1746930643402,-288.61191518,0.00019884,2]
[360690337,1746930643411,-400.0,0.00019884,2]
[360690338,1746930643422,-500.0,0.00019884,2]
[360690339,1746930643431,-400.0,0.00019884,2]
[360690340,1746930643441,-241.55604427,0.00019884,2]
[360690341,1746930643450,-156.69246144,0.00019884,2]
[360690342,1746930643459,-195.4503008,0.00019884,2]
[360690343,1746930643469,-400.0,0.00019884,2]
[360690344,1746930643478,-380.0,0.00019884,2]
[360690345,1746930643488,-2837.93,0.00019884,2]
[360690346,1746930643497,-400.0,0.00019884,2]
[360690347,1746930643507,-400.0,0.00019884,2]
[360690348,1746930643516,-400.0,0.00019884,2]
[360690349,1746930643525,-400.0,0.00019884,2]
[360690350,1746930643535,-399.33342095,0.00019884,2]
[360690351,1746930643545,-186.49430053,0.00019884,2]
[360690352,1746930643554,-400.0,0.00019884,2]
[360690353,1746930643564,-744.61,0.00019884,2]
[360690354,1746930643574,-400.0,0.00019884,2]
[360690355,1746930643583,-400.0,0.00019884,2]
[360690356,1746930643594,-435.15859248,0.00019884,2]
[360690357,1746930643603,-400.0,0.00019884,2]
[360690358,1746930643614,-194.97332732,0.00019884,2]
[360690359,1746930643624,-530.76212839,0.00019884,2]
[360690360,1746930643633,-400.0,0.00019884,2]
[360690361,1746930643643,-400.0,0.00019884,2]
[360690362,1746930643652,-429.27547567,0.00019884,2]
[360690363,1746930643662,-400.0,0.00019884,2]
[360690364,1746930643676,-400.0,0.00019884,2]
[360690365,1746930643686,-400.0,0.00019884,2]
[360690366,1746930643695,-400.0,0.00019884,2]
[360690367,1746930643705,-400.0,0.00019884,2]
[360690368,1746930643715,-400.0,0.00019884,2]
[360690369,1746930643725,-400.0,0.00019884,2]
[360690370,1746930643735,-658.63,0.00019884,2]
[360690371,1746930643745,-400.0,0.00019884,2]
[360690372,1746930643754,-400.0,0.00019884,2]
[360690373,1746930643764,-400.0,0.00019884,2]
[360690374,1746930643773,-400.0,0.00019884,2]
[360690375,1746930643783,-400.0,0.00019884,2]
[360690376,1746930643792,-400.0,0.00019884,2]
[360690377,1746930643801,-400.0,0.00019884,2]
[360690378,1746930643810,-400.0,0.00019884,2]
[360690379,1746930643819,-498.3833925,0.00019884,2]
[360690380,1746930643829,-400.0,0.00019884,2]
[360690381,1746930643838,-400.0,0.00019884,2]
[360690382,1746930643847,-615.09,0.00019884,2]
[360690383,1746930643857,-400.0,0.00019884,2]
[360690384,1746930643868,-400.0,0.00019884,2]
[360690385,1746930643878,-400.0,0.00019884,2]
[360690386,1746930643887,-400.0,0.00019884,2]
[360690387,1746930643896,-400.0,0.00019884,2]
[360690388,1746930643906,-339.2469984,0.00019884,2]
[360690389,1746930643919,-400.0,0.00019884,2]
[360690390,1746930643928,-400.0,0.00019884,2]
[360690391,1746930643938,-400.0,0.00019884,2]
[360690392,1746930643948,-400.0,0.00019884,2]
[360690393,1746930643957,-400.0,0.00019884,2]
[360690394,1746930643966,-400.0,0.00019884,2]
[360690395,1746930643975,-400.0,0.00019884,2]
[360690396,1746930643985,-400.0,0.00019884,2]
[360690397,1746930643996,-380.0,0.00019884,2]
[360690398,1746930644007,-400.0,0.00019884,2]
[360690399,1746930644018,-400.0,0.00019884,2]
[360690400,1746930644031,-400.0,0.00019884,2]
[360690401,1746930644042,-400.0,0.00019884,2]
[360690402,1746930644052,-400.0,0.00019884,2]
[360690403,1746930644062,-406.82838619,0.00019884,2]
[360690404,1746930644072,-400.0,0.00019884,2]
[360690405,1746930644082,-400.0,0.00019884,2]
[360690406,1746930644092,-400.0,0.00019884,2]
[360690407,1746930644101,-400.0,0.00019884,2]
[360690408,1746930644275,-400.0,0.00019884,2]
[360690409,1746930644286,-417.81120573,0.00019884,2]
[360690410,1746930644295,-400.0,0.00019884,2]
[360690411,1746930644304,-403.89691577,0.00019885,2]
[360690412,1746930644314,-323.75447035,0.00019885,2]
[360690413,1746930644325,-400.0,0.00019885,2]
[360690414,1746930644335,-400.0,0.00019885,2]
[360690415,1746930644344,-400.0,0.00019885,2]
[360690416,1746930644354,-400.0,0.00019885,2]
[360690417,1746930644364,-401.73194142,0.00019885,2]
[360690418,1746930644374,-219.00626502,0.00019885,2]
[360690419,1746930644383,-519.87518962,0.00019885,2]
[360690420,1746930644393,-400.0,0.00019885,2]
[360690421,1746930644403,-400.0,0.00019886,2]
[360690422,1746930644413,-400.0,0.00019886,2]
[360690423,1746930644424,-400.0,0.00019886,2]
[360690424,1746930644434,-400.0,0.00019886,2]
[360690425,1746930644444,-400.0,0.00019886,2]
[360690426,1746930644455,-400.0,0.00019886,2]
[360690427,1746930644465,-400.0,0.00019886,2]
[360690429,1746930644476,-400.0,0.00019886,2]
[360690430,1746930644485,-400.0,0.00019886,2]
[360690431,1746930644495,-400.0,0.00019886,2]
[360690433,1746930644505,-400.0,0.00019886,2]
[360690435,1746930644514,-400.0,0.00019886,2]
[360690436,1746930644524,-400.0,0.00019886,2]
[360690437,1746930644534,-430.29182139,0.00019886,2]
[360690438,1746930644543,-400.0,0.00019886,2]
[360690439,1746930644553,-400.0,0.00019886,2]
[360690440,1746930644562,-400.0,0.00019886,2]
[360690441,1746930644572,-400.0,0.00019886,2]
[360690442,1746930644581,-400.0,0.00019886,2]
[360690443,1746930644591,-431.44456797,0.00019886,2]
[360690444,1746930644600,-400.0,0.00019886,2]
[360690445,1746930644609,-400.0,0.00019886,2]
[360690446,1746930644619,-400.0,0.00019886,2]
[360690447,1746930644628,-400.0,0.00019886,2]
[360690448,1746930644638,-400.0,0.00019886,2]
[360690449,1746930644648,-419.50678262,0.00019886,2]
[360690450,1746930644657,-424.45185277,0.00019886,2]
[360690451,1746930644666,-400.0,0.00019886,2]
[360690452,1746930644677,-400.0,0.00019886,2]
[360690453,1746930644686,-400.0,0.00019886,2]
[360690454,1746930644695,-400.0,0.00019886,2]
[360690455,1746930644705,-400.0,0.00019886,2]
[360690456,1746930644714,-400.0,0.00019886,2]
[360690457,1746930644723,-154.27685645,0.00019886,2]
[360690458,1746930644732,-400.0,0.00019886,2]
[360690459,1746930644742,-400.0,0.00019886,2]
[360690460,1746930644751,-400.0,0.00019886,2]
[360690461,1746930644760,-400.0,0.00019886,2]
[360690462,1746930644770,-405.44340776,0.00019886,2]
[360690463,1746930644780,-500.0,0.00019886,2]
[360690464,1746930644789,-522.27674077,0.00019886,2]
[360690465,1746930644798,-500.0,0.00019886,2]
[360690466,1746930644807,-500.0,0.00019886,2]
[360690467,1746930644817,-500.0,0.00019886,2]
[360690468,1746930644826,-500.0,0.00019886,2]
[360690469,1746930644836,-400.0,0.00019886,2]
[360690470,1746930644845,-400.0,0.00019886,2]
[360690471,1746930644854,-486.4346118,0.00019886,2]
[360690472,1746930644864,-500.0,0.00019886,2]
[360690473,1746930644877,-551.9790618,0.00019886,2]
[360690474,1746930644886,-500.0,0.00019886,2]
[360690475,1746930644895,-400.0,0.00019886,2]
[360690476,1746930644904,-400.0,0.00019886,2]
[360690477,1746930644914,-400.0,0.00019886,2]
[360690478,1746930644925,-400.0,0.00019886,2]
[360690479,1746930644934,-400.0,0.00019886,2]
[360690480,1746930644943,-400.0,0.00019886,2]
[360690481,1746930644954,-439.7239682,0.00019886,2]
[360690482,1746930644963,-520.01802168,0.00019886,2]
[360690483,1746930644972,-400.0,0.00019886,2]
[360690484,1746930644982,-400.0,0.00019886,2]
[360690485,1746930644993,-400.0,0.00019886,2]
[360690486,1746930645003,-400.0,0.00019886,2]
[360690487,1746930645012,-400.0,0.00019886,2]
[360690488,1746930645021,-476.24,0.00019886,2]
[360690489,1746930645031,-400.0,0.00019886,2]
[360690490,1746930645040,-400.0,0.00019886,2]
[360690491,1746930645049,-400.0,0.00019886,2]
[360690492,1746930645059,-400.0,0.00019886,2]
[360690494,1746930645068,-400.0,0.00019886,2]
[360690496,1746930645077,-400.0,0.00019886,2]
[360690497,1746930645086,-400.0,0.00019886,2]
[360690498,1746930645095,-400.0,0.00019886,2]
[360690499,1746930645104,-400.0,0.00019886,2]
[360690500,1746930645114,-400.0,0.00019886,2]
[360690501,1746930645123,-400.0,0.00019886,2]
[360690502,1746930645132,-400.0,0.00019886,2]
[360690503,1746930645142,-400.0,0.00019886,2]
[360690504,1746930645151,-400.0,0.00019886,2]
[360690505,1746930645160,-400.0,0.00019886,2]
[360690506,1746930645169,-408.07248678,0.00019886,2]
[360690507,1746930645183,-411.84416576,0.00019886,2]
[360690508,1746930645193,-400.0,0.00019886,2]
[360690509,1746930645202,-398.0,0.00019886,2]
[360690510,1746930645212,-411.20400341,0.00019886,2]
[360690511,1746930645221,-400.0,0.00019886,2]
[360690512,1746930645230,-400.0,0.00019887,2]
[360690513,1746930645240,-404.86917489,0.00019887,2]
[360690514,1746930645250,-405.72794422,0.00019887,2]
[360690515,1746930645259,-400.0,0.00019887,2]
[360690516,1746930645269,-400.0,0.00019887,2]
[360690517,1746930645278,-400.0,0.00019887,2]
[360690518,1746930645288,-404.89101459,0.00019887,2]
[360690519,1746930645298,-401.23355486,0.00019887,2]
[360690520,1746930645307,-400.0,0.00019887,2]
[360690521,1746930645316,-257.86053201,0.00019887,2]
[360690522,1746930645326,-188.35453678,0.00019887,2]
[360690523,1746930645335,-400.0,0.00019887,2]
[360690524,1746930645345,-400.0,0.00019887,2]
[360690525,1746930645354,-400.35816736,0.00019887,2]
[360690526,1746930645363,-400.0,0.00019887,2]
[360690527,1746930645372,-400.0,0.00019887,2]
[360690528,1746930645382,-400.0,0.00019887,2]
[360690529,1746930645391,-406.03965731,0.00019887,2]
[360690530,1746930645402,-410.12554934,0.00019887,2]
[360690531,1746930645411,-234.13999416,0.00019887,2]
[360690532,1746930645421,-400.0,0.00019887,2]
[360690533,1746930645435,-179.12953106,0.00019887,2]
[360690534,1746930645444,-535.49,0.00019887,2]
[360690535,1746930645454,-979.84,0.00019887,2]
[360690536,1746930645463,-400.0,0.00019887,2]
[360690537,1746930645473,-400.0,0.00019887,2]
[360690538,1746930645482,-430.40931559,0.00019887,2]
[360690539,1746930645492,-206.76,0.00019887,2]
[360690540,1746930645501,-400.0,0.00019887,2]
[360690541,1746930645513,-400.0,0.00019887,2]
[360690542,1746930645522,-350.73663312,0.00019887,2]
[360690543,1746930645532,-329.3977141,0.00019887,2]
[360690544,1746930645541,-400.0,0.00019887,2]
[360690545,1746930645551,-411.61,0.00019887,2]
[360690546,1746930645561,-400.0,0.00019887,2]
[360690547,1746930645570,-400.0,0.00019887,2]
[360690548,1746930645580,-400.0,0.00019887,2]
[360690549,1746930645589,-400.0,0.00019887,2]
[360690550,1746930645599,-203.93197375,0.00019887,2]
[360690551,1746930645608,-183.44859753,0.00019887,2]
[360690552,1746930645618,-400.0,0.00019887,2]
[360690553,1746930645627,-374.86484731,0.00019887,2]
[360690554,1746930645636,-222.93977312,0.00019887,2]
[360690555,1746930645646,-400.0,0.00019887,2]
[360690556,1746930645656,-400.0,0.00019887,2]
[360690557,1746930645665,-400.0,0.00019887,2]
[360690558,1746930645678,-317.08,0.00019887,2]
[360690559,1746930645687,-258.4218234,0.00019887,2]
[360690560,1746930645696,-402.05751311,0.00019887,2]
[360690561,1746930645706,-184.0466709,0.00019887,2]
[360690562,1746930645715,-437.67788653,0.00019887,2]
[360690563,1746930645725,-383.18593792,0.00019887,2]
[360690564,1746930645734,-400.0,0.00019887,2]
[360690565,1746930645743,-266.91,0.00019887,2]
[360690566,1746930645753,-400.0,0.00019887,2]
[360690567,1746930645762,-363.2306832,0.00019887,2]
[360690568,1746930645771,-485.1647804,0.00019887,2]
[360690569,1746930645780,-410.11835575,0.00019887,2]
[360690570,1746930645789,-246.8227624,0.00019887,2]
[360690571,1746930645798,-400.0,0.00019887,2]
[360690572,1746930645807,-241.02188542,0.00019887,2]
[360690573,1746930645816,-400.0,0.00019887,2]
[360690574,1746930645826,-400.0,0.00019887,2]
[360690575,1746930645836,-400.0,0.00019887,2]
[360690576,1746930645845,-400.0,0.00019887,2]
[360690577,1746930645855,-292.56487293,0.00019887,2]
[360690578,1746930645865,-400.0,0.00019887,2]
[360690579,1746930645876,-400.0,0.00019887,2]
[360690580,1746930645885,-400.0,0.00019887,2]
[360690581,1746930645895,-400.0,0.00019887,2]
[360690582,1746930645904,-400.0,0.00019887,2]
[360690583,1746930645915,-470.98855156,0.00019887,2]
[360690584,1746930645925,-400.0,0.00019887,2]
[360690585,1746930645934,-438.09158144,0.00019887,2]
[360690586,1746930645946,-411.46078586,0.00019887,2]
[360690587,1746930645955,-400.0,0.00019887,2]
[360690588,1746930645965,-450.0,0.00019887,2]
[360690589,1746930645974,-391.9,0.00019887,2]
[360690590,1746930645983,-500.0,0.00019887,2]
[360690591,1746930645994,-404.76199965,0.00019887,2]
[360690592,1746930646003,-400.0,0.00019887,2]
[360690593,1746930646013,-401.98928433,0.00019887,2]
[360690594,1746930646022,-400.0,0.00019887,2]
[360690596,1746930646032,-400.0,0.00019887,2]
[360690597,1746930646042,-400.0,0.00019887,2]
[360690598,1746930646053,-416.2925429,0.00019887,2]
[360690599,1746930646063,-400.0,0.00019887,2]
[360690600,1746930646073,-404.34687442,0.00019887,2]
[360690601,1746930646083,-410.25335674,0.00019887,2]
[360690602,1746930646093,-410.34185449,0.00019887,2]
[360690603,1746930646104,-400.0,0.00019887,2]
[360690604,1746930646114,-407.56526309,0.00019887,2]
[360690605,1746930646123,-400.0,0.00019887,2]
[360690606,1746930646132,-475.61120329,0.00019887,2]
[360690607,1746930646141,-400.0,0.00019887,2]
[360690608,1746930646150,-415.53,0.00019887,2]
[360690609,1746930646159,-400.0,0.00019887,2]
[360690610,1746930646168,-400.0,0.00019887,2]
[360690611,1746930646179,-416.56951648,0.00019887,2]
[360690612,1746930646187,-400.0,0.00019887,2]
[360690613,1746930646196,-402.87146437,0.00019887,2]
[360690614,1746930646206,-407.27071808,0.00019887,2]
[360690615,1746930646215,-404.96445797,0.00019887,2]
[360690616,1746930646224,-400.0,0.00019887,2]
[360690617,1746930646234,-402.29197886,0.00019887,2]
[360690618,1746930646243,-402.77425784,0.00019887,2]
[360690619,1746930646253,-400.0,0.00019887,2]
[360690620,1746930646263,-373.8722471,0.00019887,2]
[360690621,1746930646272,-400.0,0.00019887,2]
[360690622,1746930646281,-400.0,0.00019887,2]
[360690623,1746930646290,-400.0,0.00019887,2]
[360690624,1746930646300,-400.0,0.00019887,2]
[360690625,1746930646309,-400.0,0.00019887,2]
[360690626,1746930646319,-400.0,0.00019887,2]
[360690627,1746930646328,-400.0,0.00019887,2]
[360690628,1746930646338,-400.0,0.00019887,2]
[360690629,1746930646348,-400.0,0.00019887,2]
[360690630,1746930646357,-411.35692683,0.00019887,2]
[360690631,1746930646367,-400.0,0.00019887,2]
[360690632,1746930646376,-400.0,0.00019887,2]
[360690633,1746930646385,-400.0,0.00019887,2]
[360690634,1746930646395,-400.0,0.00019887,2]
[360690635,1746930646404,-400.0,0.00019887,2]
[360690636,1746930646414,-400.0,0.00019887,2]
[360690637,1746930646424,-415.33153862,0.00019887,2]
[360690638,1746930646434,-400.0,0.00019887,2]
[360690639,1746930646443,-500.95659808,0.00019887,2]
[360690640,1746930646453,-410.74955199,0.00019887,2]
[360690641,1746930646463,-400.0,0.00019887,2]
[360690642,1746930646473,-400.0,0.00019887,2]
[360690643,1746930646483,-400.0,0.00019887,2]
[360690644,1746930646493,-400.0,0.00019887,2]
[360690645,1746930646502,-400.0,0.00019887,2]
[360690646,1746930646512,-400.0,0.00019887,2]
[360690647,1746930646521,-400.0,0.00019887,2]
[360690648,1746930646531,-400.0,0.00019887,2]
[360690649,1746930646540,-307.80795063,0.00019887,2]
[360690650,1746930646550,-400.0,0.00019887,2]
[360690651,1746930646560,-412.65050803,0.00019887,2]
[360690652,1746930646570,-400.0,0.00019887,2]
[360690653,1746930646579,-400.0,0.00019887,2]
[360690654,1746930646589,-400.0,0.00019887,2]
[360690655,1746930646598,-400.0,0.00019887,2]
[360690656,1746930646607,-300.0,0.00019887,2]
[360690657,1746930646616,-400.0,0.00019887,2]
[360690658,1746930646627,-404.88207319,0.00019887,2]
[360690659,1746930646636,-417.12863732,0.00019887,2]
[360690660,1746930646646,-455.18921685,0.00019887,2]
[360690661,1746930646655,-400.0,0.00019887,2]
[360690662,1746930646664,-448.05094137,0.00019887,2]
[360690663,1746930646713,-409.80516073,0.00019887,2]
[360690664,1746930646723,-423.8857277,0.00019887,2]
[360690665,1746930646732,-400.0,0.00019887,2]
[360690666,1746930646741,-400.0,0.00019887,2]
[360690667,1746930646750,-225.0,0.00019887,2]
[360690668,1746930646759,-1309.26166641,0.00019887,2]
[360690669,1746930646769,-177.46203964,0.00019888,2]
[360690670,1746930646778,-400.0,0.00019888,2]
[360690671,1746930646787,-400.0,0.00019888,2]
[360690672,1746930646799,-400.0,0.00019888,2]
[360690673,1746930646808,-422.65123224,0.0001989,2]
[360690674,1746930646818,-400.0,0.0001989,2]
[360690675,1746930646827,-400.0,0.0001989,2]
[360690676,1746930646836,-400.0,0.0001989,2]
[360690677,1746930646846,-400.0,0.0001989,2]
[360690678,1746930646855,-617.24,0.0001989,2]
[360690679,1746930646864,-400.0,0.0001989,2]
[360690680,1746930646878,-400.0,0.0001989,2]
[360690681,1746930646887,-627.91,0.0001989,2]
[360690682,1746930646896,-400.0,0.0001989,2]
[360690683,1746930646905,-400.0,0.0001989,2]
[360690684,1746930646915,-597.0,0.0001989,2]
[360690685,1746930646925,-400.0,0.0001989,2]
[360690686,1746930646934,-400.0,0.0001989,2]
[360690687,1746930646944,-400.0,0.0001989,2]
[360690688,1746930646954,-400.0,0.0001989,2]
[360690689,1746930646963,-400.0,0.0001989,2]
[360690690,1746930646973,-2778.6,0.0001989,2]
[360690691,1746930646982,-604.98,0.0001989,2]
[360690692,1746930646991,-400.0,0.0001989,2]
[360690693,1746930647000,-400.0,0.0001989,2]
[360690694,1746930647011,-400.0,0.0001989,2]
[360690695,1746930647020,-566.4,0.0001989,2]
[360690696,1746930647029,-400.0,0.0001989,2]
[360690697,1746930647038,-400.0,0.0001989,2]
[360690698,1746930647047,-400.0,0.0001989,2]
[360690699,1746930647056,-400.0,0.0001989,2]
[360690700,1746930647066,-727.9,0.0001989,2]
[360690701,1746930647075,-400.0,0.0001989,2]
[360690702,1746930647084,-400.0,0.0001989,2]
[360690703,1746930647094,-400.0,0.0001989,2]
[360690704,1746930647104,-400.0,0.0001989,2]
[360690705,1746930647113,-400.0,0.0001989,2]
[360690706,1746930647123,-400.0,0.0001989,2]
[360690707,1746930647132,-400.0,0.0001989,2]
[360690708,1746930647142,-150.648152,0.0001989,2]
[360690709,1746930647152,-400.0,0.0001989,2]
[360690710,1746930647161,-400.0,0.0001989,2]
[360690711,1746930647171,-12500.0,0.00019891,2]
[360690712,1746930647183,-431.09013881,0.00019896,2]
[360690713,1746930647192,-431.0901388,0.00019897,2]
[360690714,1746930647201,-431.0901388,0.00019897,2]
[360690715,1746930647210,-234.67253375,0.00019898,2]
[360690716,1746930647220,-154.3175913,0.00019898,2]
[360690717,1746930647229,-169.80763347,0.00019898,2]
[360690718,1746930647238,-400.0,0.00019898,2]
[360690719,1746930647247,-154.91718011,0.00019898,2]
[360690720,1746930647257,-400.0,0.00019898,2]
[360690721,1746930647266,-400.0,0.00019898,2]
[360690722,1746930647274,-439.94,0.00019898,2]
[360690723,1746930647284,-532.4181588,0.00019898,2]
[360690724,1746930647294,-400.0,0.00019898,2]
[360690725,1746930647303,-400.0,0.00019898,2]
[360690726,1746930647312,-400.0,0.00019898,2]
[360690727,1746930647322,-400.0,0.00019898,2]
[360690728,1746930647331,-400.0,0.00019898,2]
[360690729,1746930647341,-400.0,0.00019898,2]
[360690730,1746930647350,-242.7455019,0.00019898,2]
[360690731,1746930647359,-400.0,0.00019898,2]
[360690732,1746930647369,-400.0,0.00019898,2]
[360690733,1746930647378,-400.0,0.00019898,2]
[360690734,1746930647387,-400.0,0.00019898,2]
[360690735,1746930647396,-400.0,0.00019898,2]
[360690736,1746930647407,-400.0,0.00019898,2]
[360690737,1746930647416,-400.0,0.00019898,2]
[360690738,1746930647427,-400.0,0.00019898,2]
[360690739,1746930647436,-400.32,0.00019898,2]
[360690740,1746930647445,-400.0,0.00019898,2]
[360690741,1746930647454,-400.0,0.00019898,2]
[360690742,1746930647463,-400.0,0.00019898,2]
[360690743,1746930647472,-400.0,0.00019898,2]
[360690744,1746930647482,-508.19,0.00019898,2]
[360690745,1746930647491,-12985.2,0.00019898,2]
[360690746,1746930647501,-400.0,0.00019898,2]
[360690747,1746930647510,-400.0,0.00019898,2]
[360690748,1746930647520,-400.0,0.00019898,2]
[360690749,1746930647529,-400.0,0.00019898,2]
[360690750,1746930647538,-431.0901388,0.00019898,2]
[360690751,1746930647548,-400.0,0.00019898,2]
[360690752,1746930647557,-400.0,0.00019898,2]
[360690753,1746930647567,-400.0,0.00019898,2]
[360690754,1746930647577,-400.0,0.00019898,2]
[360690755,1746930647586,-400.0,0.00019898,2]
[360690756,1746930647595,-400.0,0.00019898,2]
[360690757,1746930647604,-400.0,0.00019898,2]
[360690758,1746930647614,-400.0,0.00019898,2]
[360690759,1746930647623,-400.0,0.00019898,2]
[360690760,1746930647632,-400.0,0.00019898,2]
[360690761,1746930647642,-400.0,0.00019898,2]
[360690762,1746930647651,-1118.4,0.00019898,2]
[360690763,1746930647661,-1312.85,0.00019898,2]
[360690764,1746930647670,-400.0,0.00019898,2]
[360690765,1746930647681,-620.03,0.00019898,2]
[360690766,1746930647690,-1130.75,0.00019898,2]
[360690767,1746930647700,-234.67253371,0.00019899,2]
[360690768,1746930647709,-431.0901388,0.00019899,2]
[360690769,1746930647718,-234.67253371,0.00019899,2]
[360690770,1746930647727,-400.0,0.00019899,2]
[360690771,1746930647737,-911.79,0.00019899,2]
[360690772,1746930647746,-400.0,0.00019899,2]
[360690773,1746930647755,-182.41687713,0.00019899,2]
[360690774,1746930647764,-400.0,0.00019899,2]
[360690775,1746930647773,-294.16575565,0.00019899,2]
[360690776,1746930647782,-429.87,0.00019899,2]
[360690777,1746930647792,-400.0,0.00019899,2]
[360690778,1746930647801,-400.0,0.00019899,2]
[360690779,1746930647811,-400.0,0.00019899,2]
[360690780,1746930647820,-303.15046081,0.00019899,2]
[360690781,1746930647830,-400.0,0.00019899,2]
[360690782,1746930647839,-400.0,0.00019899,2]
[360690783,1746930647848,-400.0,0.00019899,2]
[360690784,1746930647857,-400.0,0.00019899,2]
[360690785,1746930647867,-400.0,0.00019899,2]
[360690786,1746930647879,-400.0,0.00019899,2]
[360690787,1746930647888,-400.0,0.00019899,2]
[360690788,1746930647897,-400.0,0.00019899,2]
[360690789,1746930647906,-400.0,0.00019899,2]
[360690790,1746930647916,-400.0,0.00019899,2]
[360690791,1746930647927,-400.0,0.00019899,2]
[360690792,1746930647936,-400.0,0.00019899,2]
[360690793,1746930647947,-400.0,0.00019899,2]
[360690794,1746930647956,-400.0,0.00019899,2]
[360690795,1746930647966,-400.0,0.00019899,2]
[360690796,1746930647975,-400.0,0.00019899,2]
[360690797,1746930647984,-400.0,0.00019899,2]
[360690798,1746930647993,-250.0,0.00019899,2]
[360690799,1746930648003,-520.0,0.00019899,2]
[360690800,1746930648013,-496.86016874,0.00019899,2]
[360690801,1746930648022,-400.0,0.00019899,2]
[360690802,1746930648032,-400.0,0.00019899,2]
[360690803,1746930648041,-400.0,0.00019899,2]
[360690804,1746930648052,-400.0,0.00019899,2]
[360690805,1746930648062,-400.0,0.00019899,2]
[360690806,1746930648071,-400.0,0.00019899,2]
[360690807,1746930648080,-2837.93,0.00019899,2]
[360690808,1746930648089,-400.0,0.00019899,2]
[360690809,1746930648099,-400.0,0.00019899,2]
[360690810,1746930648109,-744.61,0.00019899,2]
[360690811,1746930648118,-271.64102392,0.00019899,2]
[360690812,1746930648127,-400.0,0.00019899,2]
[360690813,1746930648137,-400.0,0.00019899,2]
[360690814,1746930648147,-400.0,0.00019899,2]
[360690815,1746930648157,-400.0,0.00019899,2]
[360690816,1746930648166,-400.0,0.00019899,2]
[360690817,1746930648178,-658.63,0.00019899,2]
[360690818,1746930648188,-400.0,0.00019899,2]
[360690819,1746930648197,-358.92446688,0.00019899,2]
[360690820,1746930648206,-400.0,0.00019899,2]
[360690821,1746930648216,-400.0,0.00019899,2]
[360690822,1746930648226,-615.09,0.00019899,2]
[360690823,1746930648236,-400.0,0.00019899,2]
[360690824,1746930648246,-185.66785508,0.00019899,2]
[360690825,1746930648256,-400.0,0.00019899,2]
[360690826,1746930648265,-400.0,0.00019899,2]
[360690827,1746930648276,-462.14088801,0.00019899,2]
[360690828,1746930648286,-400.0,0.00019899,2]
[360690829,1746930648296,-400.0,0.00019899,2]
[360690830,1746930648305,-400.0,0.00019899,2]